fUSD/lending_fUSD_20240620
["ID","MTS","AMOUNT","RATE_DAILY","PERIOD"]
[329979930,1718892634913,-48.70711497,0.00012095,2]
[329979932,1718892634923,-250.0,0.00012101,2]
[329979933,1718892634933,-157.75,0.00012117,2]
[329979934,1718892634942,-150.0,0.0001213,2]
[329979935,1718892634952,-300.0,0.0001213,2]
[329979936,1718892634962,-228.54390739,0.00012131,2]
[329979937,1718892634973,-6520.0,0.00012131,2]
[329979938,1718892634985,-1083.89902716,0.00012131,2]
[329979939,1718892634996,-744.62773054,0.00012131,2]
[329979940,1718892635035,-893.36933491,0.00012131,2]
[329979941,1718892635044,-2080.99,0.00012209,2]
[329979942,1718892635054,-250.0,0.00012282,2]
[329979943,1718892635063,-3294.54066509,0.00012282,2]
[329979944,1718892635313,-1608.95177201,0.00012282,2]
[329979945,1718892635324,-30584.010016,0.00012282,2]
[329979946,1718892635335,-326.5417784,0.00012282,2]
[329979947,1718892635346,-2627.53883756,0.00012282,2]
[329979957,1718892638560,-3143.08729692,0.00012108,2]
[329979963,1718892638572,-666.23816241,0.00012108,2]
[329979967,1718892638584,-715.1905009,0.00012108,2]
[329979970,1718892638595,-700.5486545,0.00012108,2]
[329979972,1718892638608,-778.63930369,0.00012108,2]
[329979976,1718892638620,-589.61665088,0.00012108,2]
[329979980,1718892640138,-1416.27944586,0.00012108,2]
[329979981,1718892640542,-711.46862103,0.00012108,2]
[329979983,1718892640554,-2030.50142539,0.00012108,2]
[329979985,1718892640566,-497.52711689,0.00012108,2]
[329979988,1718892640578,-811.42233463,0.00012108,2]
[329979992,1718892640590,-718.8704869,0.00012108,2]
[329979994,1718892640600,-0.26659112,0.00012282,2]
[329980020,1718892640840,-772.96033982,0.00012282,2]
[329980022,1718892640850,-1000.0,0.0001232,2]
[329980024,1718892640861,-165.84,0.00012325,2]
[329980026,1718892640871,-443.73,0.00012477,2]
[329980028,1718892640881,-165.84,0.00012539,2]
[329980030,1718892640890,-165.84,0.00012753,2]
[329980032,1718892640899,-165.84,0.00012967,2]
[329980034,1718892640908,-159.89,0.00013127,2]
[329980036,1718892640918,-159.89,0.00013132,2]
[329980038,1718892640928,-159.89,0.00013137,2]
[329980040,1718892640937,-159.89,0.00013142,2]
[329980042,1718892640946,-159.89,0.00013147,2]
[329980044,1718892640955,-150.91,0.0001315,2]
[329980046,1718892640964,-159.89,0.00013152,2]
[329980048,1718892640974,-2737.35884337,0.00013152,2]
[329980050,1718892640983,-159.89,0.00013157,2]
[329980052,1718892640992,-159.89,0.00013162,2]
[329980054,1718892641002,-159.89,0.00013167,2]
[329980056,1718892641011,-159.89,0.00013172,2]
[329980058,1718892641021,-159.89,0.00013177,2]
[329980060,1718892641030,-159.89,0.00013182,2]
[329980062,1718892641039,-159.89,0.00013187,2]
[329980064,1718892641049,-159.89,0.00013192,2]
[329980066,1718892641058,-1274.3561,0.00013215,2]
[329980068,1718892641067,-420.0,0.00013314,2]
[329980070,1718892641076,-210.0,0.00013343,2]
[329980072,1718892641086,-172.91,0.00013373,2]
[329980074,1718892641098,-321.9627,0.00013479,2]
[329980076,1718892641110,-4288.7016,0.00013479,2]
[329980077,1718892641119,-151.95189312,0.00013479,2]
[329980079,1718892641128,-3000.0,0.0001354,2]
[329980081,1718892641137,-500.0,0.00013579,2]
[329980083,1718892641147,-2825.4578,0.00013579,2]
[329980085,1718892641156,-4317.8753,0.00013579,2]
[329980087,1718892641165,-1603.42046127,0.00013579,2]
[329980119,1718892641455,-1331.8968041,0.00013579,2]
[329980122,1718892641467,-630.03457563,0.00013579,2]
[329980124,1718892641478,-300.0,0.00013579,2]
[329980126,1718892641489,-577.19664969,0.00013579,2]
[329980133,1718892641547,-839.99482759,0.00013579,2]
[329980135,1718892641558,-692.83662089,0.00013579,2]
[329980138,1718892641569,-636.9688803,0.00013579,2]
[329980140,1718892641580,-986.31398089,0.00013579,2]
[329980142,1718892641592,-695.24719509,0.00013579,2]
[329980144,1718892641603,-1000.13366531,0.00013579,2]
[329980147,1718892641617,-548.43153253,0.00013579,2]
[329980149,1718892641628,-266.35925392,0.00013579,2]
[329980151,1718892641638,-1533.30178213,0.00013579,2]
[329980153,1718892641649,-27804.48745662,0.00013579,2]
[329980159,1718892641694,-12969.09999999,0.00013579,2]
[329980432,1718892643871,-6340.0,0.00013579,2]
[329980439,1718892643924,-718.0204807,0.00013579,2]
[329980441,1718892643935,-32569.53000001,0.00013579,2]
[329980443,1718892643947,-692.89621766,0.00013579,2]
[329980446,1718892643958,-1946.88,0.00013579,2]
[329980448,1718892643969,-731.5037094,0.00013579,2]
[329980450,1718892643980,-1000.0,0.00013579,2]
[329980452,1718892643991,-730.68799416,0.00013579,2]
[329980454,1718892644003,-708.65961505,0.00013579,2]
[329980457,1718892644024,-614.75103282,0.00013579,2]
[329980458,1718892644037,-1301.3,0.00013579,2]
[329980487,1718892644361,-230.04726425,0.00013579,2]
[329980490,1718892644373,-270.97321598,0.00013579,2]
[329980494,1718892644385,-1222.96441759,0.00013579,2]
[329980765,1718892646989,-714.9237479,0.00013579,2]
[329980767,1718892647000,-770.71608179,0.00013579,2]
[329980769,1718892647012,-2787.44339086,0.00013579,2]
[329980771,1718892647028,-1523.00718957,0.00013579,2]
[329980773,1718892647040,-64839.13720595,0.00013579,2]
[329980775,1718892647052,-518.42348696,0.00013579,2]
[329980777,1718892647064,-602.00844115,0.00013579,2]
[329980804,1718892647389,-718.01287636,0.00013579,2]
[329980806,1718892647400,-884.17499999,0.00013579,2]
[329980808,1718892647411,-1628.375,0.00013579,2]
[329980824,1718892647578,-81625.8740459,0.00013579,2]
[329980825,1718892647588,-1177.70478776,0.0001358,2]
[329980827,1718892647597,-156.35356322,0.0001358,2]
[329980829,1718892647607,-323.52460299,0.0001358,2]
[329980831,1718892647621,-309161.44882837,0.00013679,2]
[329981123,1718892886101,624.63,0.00010959,2]
[329981124,1718892890500,481.31,0.00011221,2]
[329981125,1718892945300,4926.27171388,0.00026,90]
[329981127,1718893489228,331.48174068,0.00011993,2]
[329981128,1718893494064,498.22,0.00010148,2]
[329981129,1718893542752,-2876.0,0.00012092,2]
[329981130,1718893562535,-389.4227621,0.00012029,2]
[329981131,1718893562559,-185.13,0.00012093,2]
[329981132,1718893562580,-557.04,0.00012129,2]
[329981133,1718893562605,-250.0,0.00012129,2]
[329981134,1718893562627,-2659.94,0.00012153,2]
[329981135,1718893562648,-1396.466003,0.00012195,2]
[329981136,1718893562669,-250.0,0.00012256,2]
[329981137,1718893562693,-498.22,0.00012412,2]
[329981138,1718893566761,200.0,0.00012143,2]
[329981147,1718893715423,3613.7812349,0.00012185,2]
[329981148,1718893715445,10000.0,0.00012185,2]
[329981149,1718893715466,10000.0,0.00012185,2]
[329981155,1718893832933,-1772.96,0.00012164,2]
[329981156,1718893832946,-250.0,0.00012164,2]
[329981158,1718893832955,-276.2187651,0.00012185,2]
[329981160,1718893832966,-153.66,0.00012585,2]
[329981162,1718893832976,-153.66,0.00012631,2]
[329981163,1718893832985,-153.77125084,0.00012636,2]
[329981164,1718893832995,-153.66,0.00012678,2]
[329981165,1718893833005,-153.66,0.00012725,2]
[329981166,1718893833015,-250.0,0.00012737,2]
[329981167,1718893833024,-153.66,0.00012772,2]
[329981168,1718893833033,-153.77125079,0.00012777,2]
[329981169,1718893833050,-1924.86,0.00012777,2]
[329981170,1718893833063,-153.66,0.00012819,2]
[329981171,1718893833073,-153.66,0.00012866,2]
[329981172,1718893833083,-167.45,0.00012912,2]
[329981173,1718893833094,-153.66,0.00012912,2]
[329981174,1718893833104,-153.77125079,0.00012917,2]
[329981175,1718893833115,-153.66,0.00012959,2]
[329981176,1718893833125,-300.0,0.00013004,2]
[329981177,1718893833137,-150.0,0.00013004,2]
[329981178,1718893833147,-6862.565222,0.00013005,2]
[329981179,1718893833157,-153.66,0.00013006,2]
[329981180,1718893833167,-16160.1061,0.00013015,2]
[329981181,1718893833177,-2256.5540686,0.00013015,2]
[329981182,1718893833188,-153.66,0.00013053,2]
[329981183,1718893833198,-153.77125079,0.00013058,2]
[329981184,1718893833210,-153.66,0.000131,2]
[329981185,1718893833220,-153.66,0.00013147,2]
[329981186,1718893833231,-288.58,0.00013181,2]
[329981187,1718893833241,-153.66,0.00013194,2]
[329981188,1718893833251,-153.77125079,0.00013198,2]
[329981189,1718893833261,-1000.0,0.00013231,2]
[329981190,1718893833271,-153.66,0.0001324,2]
[329981191,1718893833281,-153.77125079,0.00013339,2]
[329981192,1718893833291,-157.773894,0.00013477,2]
[329981193,1718893833301,-1000.0,0.00013479,2]
[329981194,1718893833311,-18560.3664,0.00013479,2]
[329981195,1718893833321,-1123.3096,0.00013479,2]
[329981196,1718893833331,-1000.0,0.00013479,2]
[329981197,1718893833340,-2500.0,0.00013479,2]
[329981198,1718893833350,-153.77125079,0.00013479,2]
[329981199,1718893833360,-3000.0,0.0001354,2]
[329981200,1718893833370,-1220.95347916,0.0001355,2]
[329981201,1718893833380,-1181.4735,0.00013579,2]
[329981202,1718893833392,-4764.8914,0.00013579,2]
[329981203,1718893833402,-173214.8031,0.00013579,2]
[329981204,1718893833412,-500.0,0.00013579,2]
[329981205,1718893833422,-55318.22504135,0.00013579,2]
[329981206,1718893833436,-1044.25752579,0.00013579,2]
[329981207,1718893833448,-25615.80820367,0.00013579,2]
[329981209,1718893833527,-5660.36809885,0.00013579,2]
[329981211,1718893833540,-3250.79755,0.00013579,2]
[329981213,1718893833553,-454.25461509,0.00013579,2]
[329981215,1718893833569,-1329.45571686,0.00013579,2]
[329981217,1718893833581,-1275.73562343,0.00013579,2]
[329981220,1718893833594,-421.64836999,0.00013579,2]
[329981222,1718893833606,-315.29707946,0.00013579,2]
[329981224,1718893833952,-5314.15217551,0.00013579,2]
[329981225,1718893833962,-5374.56776773,0.0001358,2]
[329981226,1718893833974,-2883.72852918,0.0001358,2]
[329981227,1718893833984,-164.92928556,0.0001358,2]
[329981228,1718893833994,-179.38098978,0.0001358,2]
[329981229,1718893834004,-325.76231733,0.0001358,2]
[329981230,1718893834014,-219.97,0.00013589,3]
[329981231,1718893834025,-2714.31862439,0.00013679,2]
[329981232,1718893834038,-327.85685687,0.00013679,2]
[329981233,1718893834052,-1099.575,0.00013679,2]
[329981234,1718893834065,-274.81698425,0.00013679,2]
[329981236,1718893839253,-999.63,0.00013679,2]
[329981238,1718893839267,-6449.57870375,0.00013679,2]
[329981240,1718893839280,-2820.32,0.00013679,2]
[329981245,1718893839997,-2588.0,0.00013679,2]
[329981256,1718893840102,-35110.0,0.00013679,2]
[329981258,1718893840116,-56193.61790367,0.00013679,2]
[329981770,1718893845675,-151.95189312,0.0001348,2]
[329981775,1718893845685,-351.27347167,0.00013679,2]
[329981781,1718893845698,-3958.73381192,0.00013679,2]
[329981786,1718893845709,-973.48251,0.00013679,2]
[329981795,1718893845720,-21656.03206334,0.00013679,2]
[329981802,1718893845732,-359628.49224842,0.00013679,2]
[329981808,1718893845743,-287943.66801317,0.0001368,2]
[329981814,1718893845754,-7246.43517365,0.0001368,2]
[329981822,1718893845766,-993170.4686451,0.0001368,2]
[329981828,1718893845775,-151.31,0.0001368,2]
[329981834,1718893845784,-151.31,0.0001368,2]
[329981839,1718893845794,-151.31,0.0001368,2]
[329981843,1718893845803,-151.31,0.0001368,2]
[329981847,1718893845813,-151.31,0.0001368,2]
[329981850,1718893845822,-151.31,0.0001368,2]
[329981852,1718893845832,-151.31,0.0001368,2]
[329981854,1718893845842,-151.31,0.0001368,2]
[329981856,1718893845852,-151.31,0.0001368,2]
[329981858,1718893845862,-151.31,0.0001368,2]
[329981860,1718893845871,-151.31,0.0001368,2]
[329981862,1718893845880,-151.31,0.0001368,2]
[329981864,1718893845890,-151.31,0.0001368,2]
[329981866,1718893845899,-151.31,0.0001368,2]
[329981868,1718893845908,-151.31,0.0001368,2]
[329981870,1718893845918,-550.3,0.00013699,2]
[329981872,1718893845927,-159.89,0.00013699,2]
[329981874,1718893845936,-200.0,0.00013699,2]
[329981876,1718893845946,-991.45,0.00013699,2]
[329981878,1718893845955,-8258.29629687,0.000137,2]
[329981880,1718893845965,-151.95189312,0.00013764,2]
[329981882,1718893845977,-325.76231733,0.000138,2]
[329981883,1718893845987,-8258.29629687,0.0001382,2]
[329981885,1718893845995,-212.75515162,0.00013909,2]
[329981887,1718893846004,-8258.29629687,0.0001394,2]
[329981888,1718893846014,-1136.055484,0.00013973,2]
[329981890,1718893846023,-151.31,0.0001399,2]
[329981892,1718893846033,-151.31,0.0001399,2]
[329981894,1718893846042,-151.31,0.0001399,2]
[329981895,1718893846052,-151.31,0.0001399,2]
[329981897,1718893846061,-151.31,0.0001399,2]
[329981899,1718893846070,-326.13802441,0.00014,2]
[329981901,1718893846080,-114692.0,0.00014,2]
[329981902,1718893846089,-750.00106615,0.00014,2]
[329981904,1718893846100,-750.00106615,0.00014,2]
[329981906,1718893846110,-750.00106615,0.00014,2]
[329981908,1718893846119,-750.00106615,0.00014,2]
[329981910,1718893846134,-750.00106615,0.00014,2]
[329981911,1718893846143,-750.00106615,0.00014,2]
[329981913,1718893846152,-750.00106615,0.00014,2]
[329981915,1718893846162,-750.00106615,0.00014,2]
[329981917,1718893846175,-750.00106615,0.00014,2]
[329981918,1718893846188,-750.00106615,0.00014,2]
[329981920,1718893846197,-750.00106615,0.00014,2]
[329981922,1718893846206,-750.00106615,0.00014,2]
[329981924,1718893846216,-750.00106615,0.00014,2]
[329981925,1718893846225,-750.00106615,0.00014,2]
[329981927,1718893846234,-750.00106615,0.00014,2]
[329981929,1718893846244,-750.00106615,0.00014,2]
[329981931,1718893846254,-750.00106615,0.00014,2]
[329981933,1718893846264,-750.00106615,0.00014,2]
[329981935,1718893846273,-750.00106615,0.00014,2]
[329981936,1718893846283,-750.00106615,0.00014,2]
[329981938,1718893846292,-750.00106615,0.00014,2]
[329981940,1718893846302,-750.00106615,0.00014,2]
[329981942,1718893846311,-750.00106615,0.00014,2]
[329981943,1718893846320,-750.00106615,0.00014,2]
[329981945,1718893846329,-750.00106615,0.00014,2]
[329981947,1718893846339,-750.00106615,0.00014,2]
[329981949,1718893846350,-750.00106615,0.00014,2]
[329981950,1718893846359,-750.00106615,0.00014,2]
[329981952,1718893846368,-750.00106615,0.00014,2]
[329981954,1718893846377,-750.00106615,0.00014,2]
[329981956,1718893846387,-750.00106615,0.00014,2]
[329981958,1718893846396,-750.00106615,0.00014,2]
[329981960,1718893846405,-750.00106615,0.00014,2]
[329981961,1718893846414,-750.00106615,0.00014,2]
[329981963,1718893846423,-750.00106615,0.00014,2]
[329981965,1718893846432,-750.00106615,0.00014,2]
[329981967,1718893846442,-750.00106615,0.00014,2]
[329981969,1718893846452,-750.00106615,0.00014,2]
[329981970,1718893846461,-750.00106615,0.00014,2]
[329981972,1718893846471,-750.00106615,0.00014,2]
[329981974,1718893846480,-750.00106615,0.00014,2]
[329981976,1718893846489,-750.00106615,0.00014,2]
[329981978,1718893846499,-750.00106615,0.00014,2]
[329981980,1718893846509,-750.00106615,0.00014,2]
[329981982,1718893846518,-750.00106615,0.00014,2]
[329981983,1718893846527,-750.00106615,0.00014,2]
[329981991,1718893846600,-750.00106615,0.00014,2]
[329981993,1718893846609,-750.00106615,0.00014,2]
[329981994,1718893846618,-750.00106615,0.00014,2]
[329981996,1718893846627,-750.00106615,0.00014,2]
[329981998,1718893846638,-750.00106615,0.00014,2]
[329982000,1718893846647,-750.00106615,0.00014,2]
[329982002,1718893846656,-750.00106615,0.00014,2]
[329982004,1718893846665,-750.00106615,0.00014,2]
[329982005,1718893846675,-750.00106615,0.00014,2]
[329982007,1718893846686,-750.00106615,0.00014,2]
[329982009,1718893846695,-750.00106615,0.00014,2]
[329982011,1718893846705,-750.00106615,0.00014,2]
[329982013,1718893846714,-750.00106615,0.00014,2]
[329982015,1718893846723,-750.00106615,0.00014,2]
[329982017,1718893846733,-750.00106615,0.00014,2]
[329982019,1718893846741,-750.00106615,0.00014,2]
[329982022,1718893846750,-750.00106615,0.00014,2]
[329982026,1718893846760,-750.00106615,0.00014,2]
[329982029,1718893846769,-750.00106615,0.00014,2]
[329982033,1718893846779,-750.00106615,0.00014,2]
[329982037,1718893846788,-750.00106615,0.00014,2]
[329982040,1718893846798,-750.00106615,0.00014,2]
[329982044,1718893846807,-750.00106615,0.00014,2]
[329982046,1718893846816,-750.00106615,0.00014,2]
[329982049,1718893846825,-750.00106615,0.00014,2]
[329982052,1718893846835,-750.00106615,0.00014,2]
[329982054,1718893846846,-750.00106615,0.00014,2]
[329982058,1718893846855,-750.00106615,0.00014,2]
[329982060,1718893846864,-750.00106615,0.00014,2]
[329982063,1718893846873,-750.00106615,0.00014,2]
[329982066,1718893846883,-750.00106615,0.00014,2]
[329982069,1718893846892,-750.00106615,0.00014,2]
[329982071,1718893846901,-750.00106615,0.00014,2]
[329982074,1718893846910,-750.00106615,0.00014,2]
[329982077,1718893846919,-419.20131453,0.00014,2]
[329982080,1718893846929,-419.20131453,0.00014,2]
[329982083,1718893846938,-419.20131453,0.00014,2]
[329982086,1718893846947,-2248.0370989,0.00014,2]
[329982088,1718893846957,-2248.0370989,0.00014,2]
[329982091,1718893846966,-2248.0370989,0.00014,2]
[329982094,1718893846975,-2248.0370989,0.00014,2]
[329982097,1718893846985,-2248.0370989,0.00014,2]
[329982100,1718893846994,-2248.0370989,0.00014,2]
[329982103,1718893847004,-2248.0370989,0.00014,2]
[329982106,1718893847013,-2248.0370989,0.00014,2]
[329982108,1718893847023,-2248.0370989,0.00014,2]
[329982111,1718893847032,-2248.0370989,0.00014,2]
[329982114,1718893847041,-2248.0370989,0.00014,2]
[329982116,1718893847051,-2248.0370989,0.00014,2]
[329982118,1718893847060,-2248.0370989,0.00014,2]
[329982119,1718893847069,-2248.0370989,0.00014,2]
[329982121,1718893847078,-2248.0370989,0.00014,2]
[329982123,1718893847087,-2248.0370989,0.00014,2]
[329982125,1718893847098,-2248.0370989,0.00014,2]
[329982127,1718893847107,-2248.0370989,0.00014,2]
[329982129,1718893847115,-2248.0370989,0.00014,2]
[329982131,1718893847125,-2248.0370989,0.00014,2]
[329982133,1718893847134,-2248.0370989,0.00014,2]
[329982135,1718893847145,-2248.0370989,0.00014,2]
[329982136,1718893847154,-2248.0370989,0.00014,2]
[329982137,1718893847162,-2248.0370989,0.00014,2]
[329982139,1718893847172,-2248.0370989,0.00014,2]
[329982141,1718893847181,-2248.0370989,0.00014,2]
[329982143,1718893847190,-2248.0370989,0.00014,2]
[329982145,1718893847199,-2248.0370989,0.00014,2]
[329982147,1718893847208,-2248.0370989,0.00014,2]
[329982149,1718893847217,-2248.0370989,0.00014,2]
[329982151,1718893847227,-10000.0,0.00014,2]
[329982153,1718893847236,-215311.74787736,0.00014,2]
[329982155,1718893847245,-150.0,0.00014008,2]
[329982157,1718893847254,-325.76231733,0.0001402,2]
[329982159,1718893847263,-8258.29629687,0.0001406,2]
[329982161,1718893847272,-185.13,0.00014108,2]
[329982162,1718893847281,-157.75,0.00014137,2]
[329982164,1718893847290,-8258.29629687,0.0001418,2]
[329982166,1718893847299,-182.696,0.00014236,2]
[329982169,1718893847309,-166.0,0.00014236,2]
[329982171,1718893847318,-261.442,0.00014236,2]
[329982173,1718893847328,-325.76231733,0.0001424,2]
[329982175,1718893847337,-420.0,0.00014261,2]
[329982176,1718893847346,-8258.29629687,0.000143,2]
[329982178,1718893847355,-210.0,0.00014304,2]
[329982180,1718893847365,-235.44333332,0.00014405,2]
[329982182,1718893847374,-212.7551516,0.00014405,2]
[329982184,1718893847383,-8258.29629687,0.0001442,2]
[329982186,1718893847392,-200.0,0.00014443,2]
[329982188,1718893847401,-801.0,0.0001446,2]
[329982190,1718893847410,-325.76231733,0.0001446,2]
[329982192,1718893847419,-8258.29629687,0.0001454,2]
[329982194,1718893847428,-250.0,0.00014556,2]
[329982196,1718893847437,-208.77,0.00014575,4]
[329982198,1718893847446,-159.89,0.00014612,2]
[329982200,1718893847461,-8258.29629687,0.0001466,2]
[329982202,1718893847470,-498.22,0.00014676,2]
[329982204,1718893847479,-325.76231733,0.0001468,2]
[329982206,1718893847488,-150.0,0.00014748,2]
[329982208,1718893847497,-8258.29629687,0.0001478,2]
[329982210,1718893847506,-150.0,0.00014792,2]
[329982212,1718893847515,-1136.055484,0.00014795,2]
[329982214,1718893847527,-150.0,0.00014807,2]
[329982216,1718893847536,-150.0,0.0001484,2]
[329982218,1718893847550,-150.0,0.0001485,2]
[329982220,1718893847559,-150.0,0.00014865,2]
[329982222,1718893847569,-150.0,0.00014865,2]
[329982224,1718893847581,-150.0,0.00014869,2]
[329982226,1718893847592,-200.0,0.0001488,2]
[329982228,1718893847601,-1000.0,0.0001488,2]
[329982230,1718893847610,-200.0,0.0001488,2]
[329982232,1718893847619,-150.0,0.0001488,2]
[329982234,1718893847628,-150.0,0.00014885,2]
[329982236,1718893847638,-1000.0,0.00014885,2]
[329982238,1718893847647,-151.31,0.0001489,2]
[329982240,1718893847656,-151.31,0.0001489,2]
[329982242,1718893847665,-151.31,0.0001489,2]
[329982244,1718893847674,-250000.0,0.000149,2]
[329982246,1718893847683,-151.0,0.000149,2]
[329982248,1718893847692,-151.0,0.000149,2]
[329982250,1718893847702,-151.0,0.000149,2]
[329982252,1718893847710,-779.138199,0.000149,2]
[329982254,1718893847719,-779.138199,0.000149,2]
[329982256,1718893847728,-151.0,0.000149,2]
[329982258,1718893847738,-151.0,0.000149,2]
[329982260,1718893847747,-250.302457,0.000149,2]
[329982262,1718893847756,-151.0,0.000149,2]
[329982264,1718893847765,-151.0,0.000149,2]
[329982266,1718893847774,-8258.29629687,0.000149,2]
[329982268,1718893847783,-151.0,0.000149,2]
[329982270,1718893847792,-151.0,0.000149,2]
[329982272,1718893847801,-151.0,0.000149,2]
[329982274,1718893847810,-203.487574,0.000149,2]
[329982276,1718893847819,-203.487574,0.000149,2]
[329982278,1718893847828,-152.764367,0.000149,2]
[329982280,1718893847837,-151.0,0.000149,2]
[329982282,1718893847848,-153.176636,0.000149,2]
[329982284,1718893847857,-252.028932,0.000149,2]
[329982286,1718893847866,-151.0,0.000149,2]
[329982288,1718893847876,-151.0,0.000149,2]
[329982290,1718893847886,-151.0,0.000149,2]
[329982292,1718893847895,-151.0,0.000149,2]
[329982294,1718893847904,-151.0,0.000149,2]
[329982296,1718893847914,-198.229127,0.000149,2]
[329982298,1718893847923,-862.665792,0.000149,2]
[329982300,1718893847933,-151.0,0.000149,2]
[329982302,1718893847942,-198.229127,0.000149,2]
[329982304,1718893847951,-862.665792,0.000149,2]
[329982306,1718893847960,-151.0,0.000149,2]
[329982308,1718893847969,-151.0,0.000149,2]
[329982310,1718893847979,-151.0,0.000149,2]
[329982312,1718893847988,-215.026085,0.000149,2]
[329982314,1718893847997,-151.0,0.000149,2]
[329982316,1718893848007,-151.0,0.000149,2]
[329982318,1718893848016,-151.0,0.000149,2]
[329982320,1718893848026,-151.0,0.000149,2]
[329982322,1718893848036,-151.0,0.000149,2]
[329982324,1718893848045,-151.0,0.000149,2]
[329982326,1718893848053,-151.0,0.000149,2]
[329982328,1718893848063,-151.0,0.000149,2]
[329982330,1718893848072,-151.0,0.000149,2]
[329982332,1718893848081,-151.0,0.000149,2]
[329982334,1718893848090,-588.245556,0.000149,2]
[329982336,1718893848101,-151.0,0.000149,2]
[329982338,1718893848111,-588.245556,0.000149,2]
[329982340,1718893848120,-151.0,0.000149,2]
[329982342,1718893848130,-151.0,0.000149,2]
[329982344,1718893848140,-151.0,0.000149,2]
[329982346,1718893848149,-151.0,0.000149,2]
[329982348,1718893848159,-255.720834,0.000149,2]
[329982350,1718893848168,-151.0,0.000149,2]
[329982352,1718893848178,-151.0,0.000149,2]
[329982354,1718893848187,-151.0,0.000149,2]
[329982356,1718893848196,-547.676847,0.000149,2]
[329982358,1718893848205,-547.676847,0.000149,2]
[329982360,1718893848215,-151.0,0.000149,2]
[329982362,1718893848224,-151.0,0.000149,2]
[329982364,1718893848233,-151.0,0.000149,2]
[329982366,1718893848243,-151.0,0.000149,2]
[329982369,1718893848253,-151.0,0.000149,2]
[329982371,1718893848263,-151.0,0.000149,2]
[329982372,1718893848273,-151.0,0.000149,2]
[329982375,1718893848283,-151.0,0.000149,2]
[329982377,1718893848293,-587.433199,0.000149,2]
[329982379,1718893848303,-587.433199,0.000149,2]
[329982381,1718893848312,-151.0,0.000149,2]
[329982383,1718893848322,-152.856822,0.000149,2]
[329982385,1718893848332,-152.463302,0.000149,2]
[329982386,1718893848342,-151.0,0.000149,2]
[329982388,1718893848353,-548.450642,0.000149,2]
[329982390,1718893848363,-152.856822,0.000149,2]
[329982393,1718893848372,-548.450642,0.000149,2]
[329982394,1718893848380,-267.39098,0.000149,2]
[329982396,1718893848390,-151.0,0.000149,2]
[329982398,1718893848400,-256.765608,0.000149,2]
[329982400,1718893848409,-256.765608,0.000149,2]
[329982402,1718893848418,-151.0,0.000149,2]
[329982404,1718893848427,-151.0,0.000149,2]
[329982406,1718893848436,-151.0,0.000149,2]
[329982408,1718893848446,-151.0,0.000149,2]
[329982410,1718893848455,-156.083166,0.000149,2]
[329982412,1718893848464,-164.92928556,0.000149,2]
[329982414,1718893848474,-156.083166,0.000149,2]
[329982416,1718893848483,-651.988346,0.000149,2]
[329982418,1718893848491,-651.988346,0.000149,2]
[329982420,1718893848501,-151.0,0.000149,2]
[329982422,1718893848510,-226.019004,0.000149,2]
[329982424,1718893848519,-151.0,0.000149,2]
[329982426,1718893848529,-151.0,0.000149,2]
[329982429,1718893848538,-226.019004,0.000149,2]
[329982430,1718893848549,-151.0,0.000149,2]
[329982432,1718893848560,-151.0,0.000149,2]
[329982435,1718893848571,-163.010279,0.000149,2]
[329982437,1718893848581,-1035.164574,0.000149,2]